Cogmind - Beta 17 @@@ ROGUE MODE // 2026.07.22 @ 21:54:22 Player: Cinder Result: Destroyed by H-88 Terminator with KE Penetrator Performance ------------- Evolutions (9) 4500 Regions Visited (23) 4600 Robots Destroyed (352) 1760 Value Destroyed (15797) 15797 Prototype IDs (64) 1280 Alien Tech Used (0) 0 Bonus (15161) 15161 TOTAL SCORE: 43098 Bonus ------- High Alert Combat Kills 3706 Follower Combat Kills 2747 Aligned with FarCom 300 Met Data Miner 300 Met Warlord at Base 500 MAIN.C Attacked Warlord 500 Warlord Defense Kills 234 Met Warlord at Research 2000 Hacked God Mode 5000 Friendly Fire -126 Cogmind --------- Core Integrity 0/1600 Matter 90/300 Energy 100/100 System Corruption 13% Temperature Cool (0) Movement Core (50) Location -1/Command Parts ------- > --- POWER (2) -------- (None) > --- PROPULSION (8) --- (None) > --- UTILITY (12) ----- Enhanced Optical Array > --- WEAPON (3) ------- (None) > --- INVENTORY (5) ---- Quantum Reactor Advanced Energy Well (26) Matter Compressor (0) Peak State ------------ > --- POWER ------------ Particle Reactor Particle Reactor > --- PROPULSION ------- Myomer Leg Myomer Leg Myomer Leg Myomer Leg Myomer Leg Myomer Leg Myomer Leg Biometal Leg > --- UTILITY ---------- Advanced Heat Sink Advanced Heat Sink Advanced Heat Sink Experimental Coolant Injector Huge Storage Unit Enhanced Optical Array Advanced Targeting Computer Layered Medium Armor Plating Heavy Reactive Plating Improved Thermal Shield Advanced Force Field > --- WEAPON ----------- Dispersion Rifle Advanced Plasma Rifle Heavy Phase Cannon > --- INVENTORY -------- Particle Reactor Light Quantum Reactor Biometal Leg Wheel Wheel Wheel Centrium Wheel Field Propulsion Array Field Propulsion Array Impulse Thruster Array Impulse Thruster Array Advanced Energy Well Matter Compressor Launcher Loader Improved Thermal Shield Enhanced Quantum Rifle HERF Cannon Enhanced Nova Cannon Fusion Bomb Launcher Fusion Bomb Launcher [Rating: 172] Favorites ----------- Power Hybrid Deuterium Engine Engine Hybrid Deuterium Engine Power Core Reinforced Fission Core Reactor Vortex Chain Reactor Propulsion Wheel Leg Myomer Leg Wheel Wheel Flight Unit Impulse Thruster Array Utility Huge Storage Unit Device Advanced Heat Sink Storage Huge Storage Unit Processor Enhanced Optical Array Hackware System Shield Protection Hardened Medium Armor Plating Weapon Heavy Phase Cannon Energy Gun Cooled Pulse Rifle Energy Cannon Heavy Phase Cannon Ballistic Gun Enhanced Autogun Launcher Fusion Bomb Launcher Special Weapon Field Lobotomy Kit Special Melee Weapon Advanced Datajack Build | -11 -10 -10 -10 -9 -8 -7 -7 -7 -7 -7 -7 -6 -6 -5 -5 -5 -5 -4 -4 -3 -2 -1 -1 ------- Run | Yrd Mat Min Exi Min Mat Fac Was Fac Low Low Dat Pro Fac Fac Upp Upp War Pro Fac Res Res Acc Com Slots Evolved 18 | . . . . . 4 2 . . . . . . 2 2 . . . . 2 2 2 2 . Power 1 | . . . . . . . . . . . . . 1 . . . . . . . . . . Propulsion 6 | . . . . . 1 . . . . . . . . 1 . . . . 1 . 1 2 . Utility 10 | . . . . . 3 1 . . . . . . 1 1 . . . . 1 2 1 . . Weapon 1 | . . . . . . 1 . . . . . . . . . . . . . . . . . Parts Attached 253 | 7 13 . 1 . 18 8 . 24 . 2 . 3 17 33 4 7 12 2 20 45 23 5 9 Power 28 | 1 1 . 1 . 1 1 . 2 . . . . 2 5 . 3 1 . 1 3 4 . 2 Engine 14 | 1 1 . 1 . 1 1 . 2 . . . . 2 1 . 3 . . . 1 . . . Core 5 | . . . . . . . . . . . . . . 4 . . . . . 1 . . . Reactor 9 | . . . . . . . . . . . . . . . . . 1 . 1 1 4 . 2 Propulsion 66 | 2 4 . . . 7 . . 4 . . . . 4 6 2 . 2 . 8 13 7 2 5 Treads . | . . . . . . . . . . . . . . . . . . . . . . . . Leg 9 | . . . . . . . . . . . . . . . . . . . . . 6 2 1 Wheel 53 | 2 4 . . . 7 . . 4 . . . . 4 6 2 . 2 . 8 13 1 . . Hover . | . . . . . . . . . . . . . . . . . . . . . . . . Flight 4 | . . . . . . . . . . . . . . . . . . . . . . . 4 Utility 100 | 2 4 . . . 6 1 . 10 . 2 . 3 8 13 2 2 7 2 6 22 8 2 . Device 44 | 1 1 . . . 2 . . 3 . . . . 3 5 2 2 4 . 2 11 6 2 . Storage 10 | 1 3 . . . . . . 2 . 1 . 1 . 1 . . . . . 1 . . . Processor 5 | . . . . . 2 . . . . . . . 1 . . . 1 . . 1 . . . Hackware 6 | . . . . . 1 1 . . . . . . 1 1 . . . . 1 1 . . . Protection 35 | . . . . . 1 . . 5 . 1 . 2 3 6 . . 2 2 3 8 2 . . Artifact . | . . . . . . . . . . . . . . . . . . . . . . . . Weapon 59 | 2 4 . . . 4 6 . 8 . . . . 3 9 . 2 2 . 5 7 4 1 2 Energy Gun 28 | 2 4 . . . 3 3 . 7 . . . . . 1 . 1 . . 1 4 1 . 1 Energy Cannon 23 | . . . . . . 2 . . . . . . 3 8 . . 1 . 4 3 . 1 1 Ballistic Gun 1 | . . . . . 1 . . . . . . . . . . . . . . . . . . Ballistic Cannon . | . . . . . . . . . . . . . . . . . . . . . . . . Launcher 5 | . . . . . . 1 . 1 . . . . . . . 1 . . . . 2 . . Special Weapon 1 | . . . . . . . . . . . . . . . . . 1 . . . . . . Impact Weapon . | . . . . . . . . . . . . . . . . . . . . . . . . Slashing Weapon . | . . . . . . . . . . . . . . . . . . . . . . . . Piercing Weapon . | . . . . . . . . . . . . . . . . . . . . . . . . Special Melee Weapon 1 | . . . . . . . . . . . . . . . . . . . . . 1 . . Unidentified Prototypes 24 | . 1 . . . 2 2 . 4 . . . 1 . 1 . . 7 . 3 2 1 . . Parts Lost 130 | . 4 . . . 6 1 . 10 . . . 1 7 16 3 . . . 6 41 3 8 24 Power 8 | . . . . . . . . . . . . . . 1 . . . . . 3 1 . 3 Propulsion 45 | . 4 . . . 4 . . 4 . . . . 1 3 1 . . . 2 14 . 1 11 Utility 47 | . . . . . . . . 5 . . . 1 3 8 1 . . . 2 16 1 5 5 Weapon 30 | . . . . . 2 1 . 1 . . . . 3 4 1 . . . 2 8 1 2 5 Highest Loss Streak 24 | . 1 . . . 4 1 . 3 . . . 1 3 5 2 . . . 2 12 3 7 24 To Critical Strikes 2 | . . . . . . . . . . . . . . . . . . . . 1 . . 1 Average Backups 20 | 1 13 19 18 19 20 24 23 22 23 23 23 23 21 22 21 20 21 23 22 17 17 19 13 Power 2 | . 1 3 2 2 2 2 2 2 2 2 2 2 2 2 2 2 2 2 2 1 2 2 1 Propulsion 3 | . 2 3 3 3 2 4 4 3 3 3 3 3 3 3 3 3 4 4 3 3 6 8 6 Utility 8 | . 4 6 6 6 7 11 12 11 10 10 10 10 10 8 8 7 8 10 10 7 3 4 3 Weapon 5 | . 5 7 7 7 7 5 4 5 7 7 7 7 5 6 5 6 6 6 4 3 4 4 2 Tool/Special . | . . . . . . . . . . . . . . . . . . . . . . . . Unused Backups 60 | . 5 . . . 7 2 . 15 . . . 1 5 5 . 1 5 . 6 1 3 1 3 Power 9 | . 2 . . . 2 1 . 1 . . . . . . . 1 . . 1 . . . 1 Propulsion 8 | . . . . . . . . 5 . . . . . . . . . . 1 . . 1 1 Utility 21 | . 1 . . . 1 1 . 5 . . . 1 5 1 . . 2 . 2 1 . . 1 Weapon 22 | . 2 . . . 4 . . 4 . . . . . 4 . . 3 . 2 . 3 . . Tool/Special . | . . . . . . . . . . . . . . . . . . . . . . . . Average Slot Usage (%) 92 | . 99 100 100 100 97 98 100 93 92 92 92 91 89 90 90 99 98 94 92 88 92 91 42 Engine 6 | . 14 14 14 14 9 7 7 6 7 7 7 7 13 7 11 11 8 . . . . . . Reactor 1 | . . . . . . . . . . . . . . . . . 1 5 4 3 6 7 3 Leg 1 | . . . . . . . . . . . . . . . . . . . . . 16 31 15 Wheel 18 | . 27 28 28 28 25 22 23 17 15 15 15 15 14 16 17 23 23 23 25 19 8 . . Device 12 | . 14 14 14 14 10 7 7 7 7 7 7 7 8 13 15 22 22 13 10 15 21 22 6 Storage 7 | . 14 14 14 14 9 7 7 7 7 7 7 7 6 5 5 5 5 5 5 5 6 4 4 Processor 5 | . . . . . 8 7 7 7 7 7 7 7 6 5 5 5 5 5 5 6 8 8 7 Hackware 6 | . . . . . 8 15 15 12 7 7 7 7 7 5 5 5 5 5 9 8 . . . Protection 8 | . . . . . 6 6 7 8 15 15 15 14 10 10 8 5 5 14 13 8 8 7 . Energy Gun 10 | . 28 28 28 28 18 20 7 15 23 23 23 22 5 . . . . . 2 4 7 6 1 Energy Cannon 8 | . . . . . . 1 15 7 . . . . 14 16 17 16 16 17 12 8 3 3 1 Peak Build Rating 172 | 7 13 13 13 12 31 39 39 57 53 54 54 59 68 80 77 72 94 89 110 125 157 172 123 Average Rating 68 | 4 10 13 11 12 23 35 39 48 53 53 54 55 61 74 72 71 77 84 106 112 137 165 86 On Entrance 56 | . 7 13 13 12 12 31 39 39 53 53 54 54 57 68 74 72 70 89 82 110 92 146 110 Avg Prop Armor Cover (%) 7 | . . . . . . . . . . . . . . . . . . . . . 4 . 25 Naked Turns . | . . . . . . . . . . . . . . . . . . . . . . . . Heaviest Build 240 | 13 95 95 95 92 103 114 114 116 113 116 116 116 158 240 159 147 169 173 172 228 184 216 114 Greatest Support 203 | 26 26 26 26 26 42 34 34 40 40 40 40 40 44 54 48 40 52 52 68 70 150 203 178 Greatest Overweight (x) 9 | . 5 3 3 3 3 4 3 9 2 2 2 2 5 5 7 3 4 3 2 4 4 1 3 Average Overweight (x) 2 | . 1 3 3 3 2 2 3 2 2 2 2 2 3 2 3 3 3 3 1 2 1 . . Largest Inventory Capacity 25 | 8 25 25 25 25 25 25 25 25 25 25 25 25 25 25 25 25 25 25 25 25 25 25 25 Average Capacity 24 | 6 19 25 25 25 25 25 25 25 25 25 25 25 25 25 25 25 25 25 25 23 23 25 18 Most Carried 25 | 4 20 19 19 19 25 25 23 25 25 25 25 25 25 25 25 25 25 25 25 25 25 25 24 Average Carried 21 | 1 13 19 18 19 20 24 23 23 25 25 25 25 23 23 23 24 23 24 24 18 20 24 15 Final Capacity 25 | 8 25 25 25 25 25 25 25 25 25 25 25 25 25 25 25 25 25 25 25 5 25 25 5 Final Carried 25 | 4 19 19 19 19 25 23 23 25 25 25 25 25 25 18 25 25 25 25 22 5 22 24 3 Class Distribution -------------------- 27% | Tank 24% | Scavenger-Tank 13% | Hacker-Skirmisher 11% | Hacker-Tank 9% | Mutant 7% | Scavenger-Mutant Dominant Class ---------------- Mutant | -10/Materials Mutant | -10/Mines Scavenger-Mutant | -10/Exiles Scavenger-Mutant | -9/Mines Scavenger-Mutant | -8/Materials Hacker-Skirmisher | -7/Factory Hacker-Skirmisher | -7/Waste Hacker-Skirmisher | -7/Factory Tank | -7/Lower Caves Tank | -7/Lower Caves Tank | -7/Data Miner Tank | -6/Proximity Caves Tank | -6/Factory Tank | -5/Factory Scavenger-Tank | -5/Upper Caves Scavenger-Tank | -5/Upper Caves Scavenger-Tank | -5/Warlord Scavenger-Tank | -4/Proximity Caves Hacker-Tank | -4/Factory Hacker-Tank | -3/Research Scavenger-Tank | -2/Research Scavenger-Tank | -1/Access Scavenger-Mutant | -1/Command Resources | -11 -10 -10 -10 -9 -8 -7 -7 -7 -7 -7 -7 -6 -6 -5 -5 -5 -5 -4 -4 -3 -2 -1 -1 ----------- Run | Yrd Mat Min Exi Min Mat Fac Was Fac Low Low Dat Pro Fac Fac Upp Upp War Pro Fac Res Res Acc Com Matter Collected 5654 | 258 482 . 27 7 165 115 . 680 13 55 . 130 439 498 116 139 366 46 366 798 451 503 . Remotely . | . . . . . . . . . . . . . . . . . . . . . . . . Salvage Created 15550 | 25 958 . . . 414 237 . 1710 62 231 . 317 1265 3278 189 203 102 381 2168 3000 127 785 98 Parts 656 | 5 40 . . . 21 7 . 71 . 3 . 10 55 146 14 3 5 22 98 134 . 20 2 Haulers Intercepted 7 | . 2 . . . 1 1 . 1 . . . . . 2 . . . . . . . . . Recyclers Shooed 18 | . . . . . . 1 . 1 . . . . . 2 . . . . 2 10 . 2 . Parts Field Recycled . | . . . . . . . . . . . . . . . . . . . . . . . . Retrieved Matter . | . . . . . . . . . . . . . . . . . . . . . . . . Parts Self-Destructed 56 | . . . . . . . . . . 3 . 10 . . 13 3 . 27 . . . . . Prevented . | . . . . . . . . . . . . . . . . . . . . . . . . Parts Restored . | . . . . . . . . . . . . . . . . . . . . . . . . Kills | -11 -10 -10 -10 -9 -8 -7 -7 -7 -7 -7 -7 -6 -6 -5 -5 -5 -5 -4 -4 -3 -2 -1 -1 ------- Run | Yrd Mat Min Exi Min Mat Fac Was Fac Low Low Dat Pro Fac Fac Upp Upp War Pro Fac Res Res Acc Com Combat Hostiles Destroyed 248 | . 14 . . . 5 1 . 33 1 4 . 10 21 41 5 2 2 5 35 44 4 20 1 Guns 69 | . 14 . . . 5 1 . 17 1 4 . 7 2 . . . . . 3 14 . 1 . Cannons 113 | . . . . . . . . 6 . . . . 18 38 3 1 2 4 22 17 . 1 1 AOE 53 | . . . . . . . . 9 . . . 3 . 3 2 . . . 8 7 4 17 . Classes Destroyed 21 | 1 5 . . . 1 1 . 4 . . . 1 1 . 1 . . 1 3 1 1 . . Worker 33 | . 6 . . . 2 . . 7 . . . . . 1 . . . . 3 11 . 3 . Builder 25 | . . . . . . . . 3 . . . . . 9 . . . . 2 9 . 2 . Tunneler 4 | 1 . . . . . . . 1 . . . . . . . . . . 1 1 . . . Hauler 7 | . 2 . . . 1 1 . 1 . . . . . 2 . . . . . . . . . Recycler 20 | . 3 . . . 1 2 . 2 . . . . 1 5 . . . . 1 3 . 2 . Minesweeper 1 | . . . . . . . . . . . . . . . 1 . . . . . . . . Mechanic 1 | . . . . . . . . . . . . . . . . . . . 1 . . . . Operator 1 | . . . . . . . . . . . . . . . . . . . 1 . . . . Watcher 11 | . 2 . . . . . . 2 . . . . 1 3 . . . . 2 1 . . . Swarmer 40 | . . . . . . . . 4 . . . 3 2 7 2 . . . 10 12 . . . Saboteur 1 | . . . . . . . . . . . . . . . . . . . . 1 . . . Grunt 93 | . 14 . . . 2 . . 15 . 3 . 5 7 13 . 1 1 . 16 7 . 9 . Brawler 7 | . . . . . . . . 2 . . . . 1 . . . . . . 3 . 1 . Duelist 4 | . . . . . . . . . . . . 1 1 . . . 1 . . . . 1 . Protector 1 | . . . . . . . . . . . . . . . . . . . 1 . . . . Sentry 23 | . . . . . 3 . . 5 1 1 . 1 2 3 1 1 . . 2 2 . 1 . Specialist 5 | . . . . . . . . . . . . . 1 . . . . . . 4 . . . Hunter 30 | . . . . . . . . 2 . . . . 3 6 . . . 2 2 6 . 8 1 Programmer 39 | . . . . . . 1 . 5 . . . . 4 12 2 . . 2 5 8 . . . Behemoth 2 | . . . . . . . . . . . . . . . . . . 1 . 1 . . . Thug 3 | . . . . . . . . . . . . . . . . . . . . . 3 . . Knight 1 | . . . . . . . . . . . . . . . . . . . . . 1 . . Best Kill Streak 24 | 1 3 . . . 3 2 . 10 1 3 . 4 6 10 3 2 1 2 8 10 4 24 1 Combat Bots Only 17 | . 3 . . . 2 1 . 4 1 3 . 4 6 7 3 2 1 2 5 5 4 17 1 Max Kills in Single Turn 5 | 1 1 . . . 1 1 . 3 1 1 . 2 1 3 2 1 1 1 5 3 2 4 1 Gunslinging . | . . . . . . . . . . . . . . . . . . . . . . . . Exploded 4 | . . . . . . . . 3 . . . 2 . 3 2 . . . 4 2 2 3 . Melee . | . . . . . . . . . . . . . . . . . . . . . . . . Uniques/NPCs Destroyed 2 | . . . . . . . . . . . . . . . . . . . . . 2 . . Warlord (-2/Research) DD-05H (-2/Research) Combat | -11 -10 -10 -10 -9 -8 -7 -7 -7 -7 -7 -7 -6 -6 -5 -5 -5 -5 -4 -4 -3 -2 -1 -1 -------- Run | Yrd Mat Min Exi Min Mat Fac Was Fac Low Low Dat Pro Fac Fac Upp Upp War Pro Fac Res Res Acc Com Hostile Shots Fired 2668 | . 74 . . . 24 22 . 313 18 10 . 41 246 301 20 6 23 62 185 811 122 242 148 Missed 894 | . 23 . . . 8 4 . 108 9 7 . 15 89 87 7 2 9 21 58 295 18 83 51 Hits 1774 | . 51 . . . 16 18 . 205 9 3 . 26 157 214 13 4 14 41 127 516 104 159 97 Melee 9 | . . . . . . . . . . . . . . . . . . . . 6 2 1 . Projectile 1765 | . 51 . . . 16 18 . 205 9 3 . 26 157 214 13 4 14 41 127 510 102 158 97 AOE 11 | . . . . . . . . . . . . . . . . . . . . . . . 11 Critical Strikes 80 | . 1 . . . . 2 . 6 . . . . 5 10 1 . . 1 7 25 10 7 5 Part Disruptions 8 | . . . . . . . . . . . . . . . . 2 . . . . 6 . . Damage Taken 27502 | . 651 . . . 246 462 . 2580 62 47 . 475 2122 3547 297 110 139 363 2008 7314 1467 2222 3390 Core 3518 | . 149 . . . 33 63 . 362 6 . . 74 197 344 . . 9 27 44 511 83 167 1449 Absorbed by Shields 3750 | . . . . . . . . 130 . . . . 308 434 . 41 104 338 370 1361 183 481 . Redirected to Shielding 7 | . . . . . . . . . . . . . . . . . . . . 7 . . . Ignored by Resistances 2032 | . . . . . . . . 110 5 6 . . 200 233 . . . . . 104 220 1154 . Regen/Repaired (Parts) 946 | . . . . . . . . 288 . . . . . 57 . . 99 . . . 331 171 . Core Remaining (%) 72 | 100 . . . 40 94 . . . . . . 27 76 . . . . 62 96 60 94 . . Volleys Fired 691 | 1 78 . . . 21 9 . 87 2 5 . 17 60 108 11 3 7 14 64 147 11 39 7 Largest 3 | 2 2 . . . 2 3 . 3 3 3 . 3 3 3 3 3 3 3 3 3 3 3 3 Hottest 298 | 80 130 . . . 130 195 . 200 120 200 . 139 195 278 278 219 278 278 293 268 266 266 298 Shots Fired 1693 | 2 153 . . . 41 21 . 233 6 15 . 46 161 276 34 10 16 42 184 364 22 53 14 Gun 675 | 2 153 . . . 41 14 . 164 6 15 . 42 44 . . . . . 36 127 13 14 4 Cannon 945 | . . . . . . 7 . 63 . . . . 117 276 33 7 14 42 145 221 2 8 10 Launcher 68 | . . . . . . . . 6 . . . 4 . . 1 3 . . 3 13 7 31 . Special 5 | . . . . . . . . . . . . . . . . . 2 . . 3 . . . Kinetic . | . . . . . . . . . . . . . . . . . . . . . . . . Thermal 1615 | 2 153 . . . 40 21 . 224 6 15 . 42 161 276 33 7 14 42 181 348 15 22 13 Explosive 68 | . . . . . . . . 6 . . . 4 . . 1 3 . . 3 13 7 31 . Electromagnetic 5 | . . . . . 1 . . 3 . . . . . . . . . . . . . . 1 Robot Hit Streak 24 | 1 15 . . . 16 7 . 20 7 14 . 18 15 12 7 7 10 6 24 10 8 14 8 Robot Miss Streak 10 | . 5 . . . 4 6 . 7 1 1 . 6 4 6 3 . 1 3 10 4 3 2 4 Penetration Max . | . . . . . . . . . . . . . . . . . . . . . . . . Secondary Targets 6 | . . . . . . . . 1 . 1 . 3 1 . . . . . . . . . . Max Gunslinging Chain 1 | . . . . . . . . 1 . 1 . 1 1 . . . . . . . . . . Shots Hit Robots 1038 | 1 107 . . . 31 16 . 148 4 13 . 35 98 136 19 6 12 22 109 214 24 34 9 Core Hits 727 | 1 70 . . . 34 18 . 104 3 9 . 27 49 84 7 7 4 7 67 128 29 76 3 Critical Kills 7 | . . . . . . . . . . . . . . 1 . 1 . . 3 2 . . . Critical Parts Destroyed . | . . . . . . . . . . . . . . . . . . . . . . . . Critical Strikes 33 | . 2 . . . . . . 10 . . . 1 1 1 . 1 . . 3 13 . 1 . Burn 26 | . 2 . . . . . . 10 . . . 1 1 . . . . . . 11 . 1 . Meltdown 7 | . . . . . . . . . . . . . . 1 . 1 . . 3 2 . . . Melee Attacks 6 | . . . . . . . . . . . . . . . . . . . . . 6 . . Impact . | . . . . . . . . . . . . . . . . . . . . . . . . Slashing . | . . . . . . . . . . . . . . . . . . . . . . . . Piercing . | . . . . . . . . . . . . . . . . . . . . . . . . Sneak Attacks 6 | . . . . . . . . . . . . . . . . . . . . . 6 . . Combat Hostiles . | . . . . . . . . . . . . . . . . . . . . . . . . Follow-up Attacks . | . . . . . . . . . . . . . . . . . . . . . . . . Damage Inflicted 47033 | 11 1377 . . . 474 292 . 5721 96 390 . 1253 2795 7124 739 337 402 796 5332 10529 1874 7146 345 Guns 10439 | 11 1377 . . . 474 181 . 2539 96 390 . 590 529 . . . . . 650 2871 264 383 84 Cannons 20013 | . . . . . . 111 . 739 . . . . 2113 5770 620 167 402 796 3436 5391 71 142 255 Explosions 16535 | . . . . . . . . 2443 . . . 663 153 1354 119 170 . . 1206 2267 1539 6621 . Melee . | . . . . . . . . . . . . . . . . . . . . . . . . Ramming 46 | . . . . . . . . . . . . . . . . . . . 40 . . . 6 Kinetic . | . . . . . . . . . . . . . . . . . . . . . . . . Thermal 32490 | 11 1377 . . . 458 292 . 4065 96 390 . 590 2642 6106 620 167 402 796 4753 8566 335 525 299 Explosive 14142 | . . . . . . . . 1510 . . . 663 . 1018 119 170 . . 539 1963 1539 6621 . Electromagnetic 355 | . . . . . 16 . . 146 . . . . 153 . . . . . . . . . 40 Impact . | . . . . . . . . . . . . . . . . . . . . . . . . Slashing . | . . . . . . . . . . . . . . . . . . . . . . . . Piercing . | . . . . . . . . . . . . . . . . . . . . . . . . Highest Corruption 39 | . 7 7 7 7 . 3 3 5 5 5 5 5 2 11 11 11 11 1 1 39 4 3 13 Average Corruption 6 | . 4 7 7 7 . 2 3 3 5 5 5 5 2 4 11 11 11 1 1 27 3 1 4 Corruption Purged . | . . . . . . . . . . . . . . . . . . . . . . . . Corruption Blocked . | . . . . . . . . . . . . . . . . . . . . . . . . Effects 327 | . 32 2 15 4 . 2 4 58 7 12 2 11 10 34 22 11 . 8 7 79 2 1 4 Message Errors 75 | . 9 1 6 2 . . 1 15 1 4 1 2 2 6 7 3 . . 2 10 1 . 2 Matter Fused 76 | . 7 1 2 . . 1 1 16 1 3 1 2 4 4 7 5 . 1 2 16 . 1 1 Heat Flow Errors 39 | . 6 . 5 . . . 1 4 2 2 . 1 2 3 1 . . 1 2 9 . . . Energy Discharges 28 | . 4 . 1 1 . . . 6 2 2 . 1 . 2 2 . . . . 7 . . . Parts Rejected 12 | . . . . . . . . 3 . . . . . 2 . . . . 1 4 1 . 1 Parts Fused 1 | . . . . . . . . . . . . . . 1 . . . . . . . . . Data Loss (minor) 37 | . 3 . . . . . 1 9 1 1 . 2 1 4 3 1 . 3 . 8 . . . Data Loss (major) 14 | . 1 . 1 1 . . . 1 . . . . 1 4 1 1 . . . 3 . . . Misfires 11 | . 1 . . . . 1 . 2 . . . . . 2 1 1 . 1 . 2 . . . Alerts 8 | . . . . . . . . . . . . 2 . 2 . . . 1 . 3 . . . Misdirections 1 | . . . . . . . . . . . . . . 1 . . . . . . . . . Weapon Failures 25 | . 1 . . . . . . 2 . . . 1 . 3 . . . 1 . 17 . . . Overload Shots 25 | . . . . . . . . 11 . 5 . . 2 . . . . . . 7 . . . Effects 1 | . . . . . . . . 1 . . . . . . . . . . . . . . . Heat Surge 1 | . . . . . . . . 1 . . . . . . . . . . . . . . . Overflow Damage 1315 | . . . . . . 10 . 294 . . . 21 49 223 26 17 . . 177 246 . 252 . Projectiles 548 | . . . . . . 10 . 25 . . . . 49 107 26 . . . 98 233 . . . Explosions 767 | . . . . . . . . 269 . . . 21 . 116 . 17 . . 79 13 . 252 . Melee . | . . . . . . . . . . . . . . . . . . . . . . . . Knockbacks . | . . . . . . . . . . . . . . . . . . . . . . . . Impact . | . . . . . . . . . . . . . . . . . . . . . . . . Kinetic . | . . . . . . . . . . . . . . . . . . . . . . . . Secondary . | . . . . . . . . . . . . . . . . . . . . . . . . Self-Inflicted Damage 1589 | . 28 . . . . . . 323 . . . 34 . 224 30 . . . 122 310 279 236 3 Shots 31 | . 1 . . . . . . 6 . . . 2 . 3 1 . . . 1 7 5 5 . Rammed 3 | . . . . . . . . . . . . . . . . . . . 1 . . . 2 Targets Rammed 3 | . . . . . . . . . . . . . . . . . . . 1 . . . 2 Kicked . | . . . . . . . . . . . . . . . . . . . . . . . . Crushed . | . . . . . . . . . . . . . . . . . . . . . . . . Highest Temperature 445 | 18 370 . 256 . 77 150 188 219 245 144 . 159 342 445 364 239 24 296 391 199 102 196 199 Average Temperature 94 | 12 81 . 105 . 30 51 98 61 102 37 . 31 124 123 153 146 11 111 117 74 41 49 91 Received Heat Transfer 3745 | . 360 . . . 90 . . 792 18 27 . 144 350 493 . 18 54 4 360 730 245 42 18 Effects 7 | . 1 . . . . . . 2 . . . . . 3 . . . 1 . . . . . Shutdowns 1 | . . . . . . . . . . . . . . 1 . . . . . . . . . Energy Bleed 1 | . . . . . . . . . . . . . . 1 . . . . . . . . . Interference 4 | . . . . . . . . 2 . . . . . 1 . . . 1 . . . . . Damage (minor) 1 | . 1 . . . . . . . . . . . . . . . . . . . . . . Siege Activations . | . . . . . . . . . . . . . . . . . . . . . . . . Martial Activations . | . . . . . . . . . . . . . . . . . . . . . . . . Shielding Activations . | . . . . . . . . . . . . . . . . . . . . . . . . Robots Disrupted . | . . . . . . . . . . . . . . . . . . . . . . . . Combat Hostiles . | . . . . . . . . . . . . . . . . . . . . . . . . Robots Corrupted . | . . . . . . . . . . . . . . . . . . . . . . . . Combat Hostiles . | . . . . . . . . . . . . . . . . . . . . . . . . Parts Fried . | . . . . . . . . . . . . . . . . . . . . . . . . Impact Corruptions . | . . . . . . . . . . . . . . . . . . . . . . . . Robots Melted 15 | . . . . . . . . 1 . . . . 1 1 . 1 . 1 3 6 . 1 . Combat Hostiles 13 | . . . . . . . . 1 . . . . 1 . . 1 . 1 2 6 . 1 . Parts Melted 114 | . 4 . . . 2 1 . 13 . 3 . 3 16 23 2 . . 1 18 20 . 5 3 Heat Transferred 41689 | 25 2993 . . . 845 368 . 6707 199 673 . 1317 3915 7195 835 237 317 1046 4604 8980 254 844 335 Parts Sabotaged . | . . . . . . . . . . . . . . . . . . . . . . . . Parts Stolen . | . . . . . . . . . . . . . . . . . . . . . . . . Parts Stripped . | . . . . . . . . . . . . . . . . . . . . . . . . Power Chain Reactions 4 | . . . . . . . . . . . . . . . . . . . 1 3 . . . Alert | -11 -10 -10 -10 -9 -8 -7 -7 -7 -7 -7 -7 -6 -6 -5 -5 -5 -5 -4 -4 -3 -2 -1 -1 ------- Run | Yrd Mat Min Exi Min Mat Fac Was Fac Low Low Dat Pro Fac Fac Upp Upp War Pro Fac Res Res Acc Com Maximum Alert Level 4 | . . . . . . . . 3 . . . . 1 4 . . . . 3 4 3 3 2 Low Security (%) 51 | 100 100 100 . 100 100 100 100 57 . . . . 97 51 . . . . . . . 17 . Level 1 6 | . . . . . . . . 5 . . . . 2 21 . . . . 7 . . 58 . Level 2 18 | . . . . . . . . 13 . . . . . 15 . . . . 26 41 71 3 100 Level 3 17 | . . . . . . . . 23 . . . . . 6 . . . . 65 28 28 20 . Level 4 4 | . . . . . . . . . . . . . . 5 . . . . . 30 . . . Level 5 . | . . . . . . . . . . . . . . . . . . . . . . . . High Security . | . . . . . . . . . . . . . . . . . . . . . . . . Max Security . | . . . . . . . . . . . . . . . . . . . . . . . . Peak Influence 1430 | 5 102 27 . . 40 31 10 918 . . . . 225 1288 . . . . 1094 1430 799 1095 663 Initial 799 | . . 27 . . . . 10 . . . . . 6 109 . . . . 306 565 799 249 663 Average 369 | . 54 19 . . 8 1 . 328 . . . . 98 305 . . . . 686 891 623 397 577 Influence Increases 11407 | 5 569 . . . 152 76 . 1549 20 90 . 291 733 1991 115 45 385 244 1778 1961 153 1082 168 Destroy 0b10 Robot/C 5300 | . 280 . . . 100 20 . 660 20 80 . 240 440 840 100 40 300 140 720 900 . 400 20 Destroy 0b10 Robot/NC 545 | 5 65 . . . 20 15 . 80 . . . . 10 100 5 5 5 10 65 125 . 35 . Destroy Leader 1070 | . 78 . . . 32 12 . 176 . 10 . 30 132 130 10 . . 40 138 192 . 80 10 Allied During Kill 223 | . . . . . . . . . . . . 21 . 2 . . 80 54 56 10 . . . Successful Hack 311 | . 41 . . . . 28 . 100 . . . . 23 14 . . . . 45 36 . 24 . Disable Machine 915 | . 30 . . . . . . 330 . . . . 90 360 . . . . 15 60 . 30 . Anti-Garrison Action 550 | . . . . . . . . . . . . . . 150 . . . . 200 200 . . . Destroy Structure 1668 | . . . . . . 1 . 158 . . . . 8 380 . . . . 164 318 123 513 3 Advance Influence 300 | . . . . . . . . . . . . . . . . . . . 300 . . . . Partial Spotted 90 | . . . . . . . . . . . . . . . . . . . . 45 . . 45 Lose Combat Pursuer 435 | . 75 . . . . . . 45 . . . . 30 15 . . . . 75 75 30 . 90 Influence Decreases 10936 | 5 497 65 7 . 152 45 31 635 519 302 203 280 519 930 772 260 602 431 710 1617 1159 461 734 Entered New Map 3704 | . . 45 7 . . . 21 . 339 80 203 . 5 116 476 120 414 197 4 513 623 167 374 Time Decay 5342 | 5 457 20 . . 152 45 10 535 180 222 . 210 424 614 246 140 68 214 486 614 386 214 100 Search Patrol Dispatched 100 | . . . . . . . . . . . . . . . . . . . 100 . . . . Lost Part 1230 | . 40 . . . . . . 100 . . . 10 70 160 30 . . . 60 410 30 80 240 Lost Ally 560 | . . . . . . . . . . . . 60 20 40 20 . 120 20 60 80 120 . 20 Squads Dispatched 93 | . 4 . . . 6 7 . 12 . . . . 16 16 . . . . 7 18 . 6 1 Investigation 26 | . 2 . . . 2 2 . 5 . . . . 4 5 . . . . 1 2 . 2 1 Extermination 20 | . . . . . . . . 5 . . . . 4 5 . . . . 2 3 . 1 . Reinforcement 23 | . 2 . . . 1 1 . 2 . . . . 2 4 . . . . 4 6 . 1 . Assault 7 | . . . . . . . . . . . . . . 2 . . . . . 5 . . . Garrison 17 | . . . . . 3 4 . . . . . . 6 . . . . . . 2 . 2 . Intercept . | . . . . . . . . . . . . . . . . . . . . . . . . Searches Triggered 1 | . . . . . . . . . . . . . . . . . . . 1 . . . . Data Miner Redirects 7 | . . . . . . . . . . . . . . 1 . . . . . 4 . 1 1 Construction Impeded 6 | . . . . . . . . 1 . . . . 1 1 . . . . . 2 . 1 . Haulers Reinforced 2 | . . . . . . . . . . . . . . 2 . . . . . . . . . Active Scanning Responses . | . . . . . . . . . . . . . . . . . . . . . . . . Cargo Convoy Interrupts . | . . . . . . . . . . . . . . . . . . . . . . . . Stealth | -11 -10 -10 -10 -9 -8 -7 -7 -7 -7 -7 -7 -6 -6 -5 -5 -5 -5 -4 -4 -3 -2 -1 -1 --------- Run | Yrd Mat Min Exi Min Mat Fac Was Fac Low Low Dat Pro Fac Fac Upp Upp War Pro Fac Res Res Acc Com Distress Signals 28 | . . . . . . 1 . 1 . . . . . 6 . . 2 . 5 5 3 . 5 Communications Jammed . | . . . . . . . . . . . . . . . . . . . . . . . . Distress Signals . | . . . . . . . . . . . . . . . . . . . . . . . . Times Spotted 497 | . 32 . . . 5 5 6 48 1 3 . 16 26 58 5 3 19 6 51 72 19 29 93 Peak Tracking Total 95 | . 6 . . . 2 1 6 5 1 2 . 5 4 5 3 2 7 2 8 8 13 10 95 Tactical Retreats 19 | . 4 . . . . . . 3 . . . . 2 1 . . . . 3 3 1 . 2 Traps | -11 -10 -10 -10 -9 -8 -7 -7 -7 -7 -7 -7 -6 -6 -5 -5 -5 -5 -4 -4 -3 -2 -1 -1 ------- Run | Yrd Mat Min Exi Min Mat Fac Was Fac Low Low Dat Pro Fac Fac Upp Upp War Pro Fac Res Res Acc Com Traps Triggered 29 | . 7 . . . 1 4 . 6 . . . . . 8 . 1 . . . 1 . 1 . Indirectly . | . . . . . . . . . . . . . . . . . . . . . . . . Trap Hack Attempts . | . . . . . . . . . . . . . . . . . . . . . . . . Triggered . | . . . . . . . . . . . . . . . . . . . . . . . . Disarmed . | . . . . . . . . . . . . . . . . . . . . . . . . Reprogrammed . | . . . . . . . . . . . . . . . . . . . . . . . . Reused . | . . . . . . . . . . . . . . . . . . . . . . . . Traps Extracted . | . . . . . . . . . . . . . . . . . . . . . . . . Installed 1 | . . . . . . . . . . . . . . . . . . . 1 . . . . Triggered . | . . . . . . . . . . . . . . . . . . . . . . . . Most Traps Carried 4 | . . . . . . . . . . . . . . . 4 4 4 1 1 . . . . Machines | -11 -10 -10 -10 -9 -8 -7 -7 -7 -7 -7 -7 -6 -6 -5 -5 -5 -5 -4 -4 -3 -2 -1 -1 ---------- Run | Yrd Mat Min Exi Min Mat Fac Was Fac Low Low Dat Pro Fac Fac Upp Upp War Pro Fac Res Res Acc Com Machines Disabled 62 | . 2 . . . . . . 22 . . . . 6 25 . . . . 1 4 . 2 . Max in Single Turn 7 | . 2 . . . . . . 7 . . . . 4 4 . . . . 1 1 . 1 . Garrison Access 7 | . . . . . . . . 3 . . . . . 1 . . . . 1 1 1 . . Machines Repaired . | . . . . . . . . . . . . . . . . . . . . . . . . Machines Dismantled . | . . . . . . . . . . . . . . . . . . . . . . . . Machines Sabotaged . | . . . . . . . . . . . . . . . . . . . . . . . . Overloaded Fab Kills . | . . . . . . . . . . . . . . . . . . . . . . . . Hacking | -11 -10 -10 -10 -9 -8 -7 -7 -7 -7 -7 -7 -6 -6 -5 -5 -5 -5 -4 -4 -3 -2 -1 -1 --------- Run | Yrd Mat Min Exi Min Mat Fac Was Fac Low Low Dat Pro Fac Fac Upp Upp War Pro Fac Res Res Acc Com Machines Accessed 80 | . 7 . 2 . 1 4 . 17 . 2 4 . 10 9 3 . 3 . 7 7 . 3 1 Terminals 30 | . 6 . . . 1 1 . 5 . . . . 4 6 . . . . 3 3 . 1 . Fabricators 15 | . . . . . . 2 . 5 . . . . 3 2 . . . . 2 1 . . . Repair Stations 4 | . . . . . . . . 1 . . . . . 1 . . . . . . . 1 1 Recycling Units 3 | . 1 . . . . . . . . . . . 1 . . . . . 1 . . . . Scanalyzers 7 | . . . . . . . . 3 . . . . 1 . . . . . . 2 . 1 . Garrison Access 7 | . . . . . . 1 . 3 . . . . 1 . . . . . 1 1 . . . Total Hacks 251 | . 19 . 10 . 5 15 . 60 . 7 30 . 33 21 5 . 10 . 12 18 . 4 2 Successful 120 | . 9 . 10 . . 2 . 23 . 7 30 . 8 2 5 . 10 . 5 7 . 2 . Failed 129 | . 9 . . . 5 13 . 36 . . . . 25 19 . . . . 7 11 . 2 2 Catastrophic 32 | . . . . . 1 4 . 6 . . . . 6 10 . . . . 2 . . 2 1 Database Lockouts 2 | . 1 . . . . . . 1 . . . . . . . . . . . . . . . Manual 136 | . 19 . 1 . 5 15 . 30 . . . . 30 13 . . 1 . 9 10 . 1 2 Terminals 85 | . 17 . . . 5 2 . 17 . . . . 10 16 . . . . 7 9 . 2 . Fabricators 49 | . . . . . . 11 . 16 . . . . 14 4 . . . . 2 2 . . . Repair Stations 8 | . . . . . . . . 4 . . . . . 1 . . . . . . . 1 2 Recycling Units 6 | . 2 . . . . . . . . . . . 2 . . . . . 2 . . . . Scanalyzers 25 | . . . . . . . . 15 . . . . 4 . . . . . . 5 . 1 . Garrison Access 16 | . . . . . . 2 . 8 . . . . 3 . . . . . 1 2 . . . Terminal Hacks 70 | . 4 . 10 . . . . 3 . 7 30 . . . 5 . 10 . 1 . . . . Record 39 | . . . 9 . . . . . . 6 11 . . . 3 . 10 . . . . . . Part Schematic 15 | . 2 . . . . . . 1 . . 12 . . . . . . . . . . . . Robot Schematic 4 | . . . . . . . . . . . 4 . . . . . . . . . . . . Robot Analysis 3 | . 2 . . . . . . 1 . . . . . . . . . . . . . . . Prototype ID Bank 3 | . . . . . . . . . . . 3 . . . . . . . . . . . . Open Door 3 | . . . . . . . . . . 1 . . . . 2 . . . . . . . . Level Access Points 1 | . . . . . . . . . . . . . . . . . . . 1 . . . . Registered Components 1 | . . . . . . . . 1 . . . . . . . . . . . . . . . Proto ID Catalog 1 | . . . 1 . . . . . . . . . . . . . . . . . . . . Fabricator Hacks 2 | . . . . . . . . 2 . . . . . . . . . . . . . . . Network Status 1 | . . . . . . . . 1 . . . . . . . . . . . . . . . Build 1 | . . . . . . . . 1 . . . . . . . . . . . . . . . Repair Station Hacks 4 | . . . . . . . . 4 . . . . . . . . . . . . . . . Scan Component 2 | . . . . . . . . 2 . . . . . . . . . . . . . . . Repair 2 | . . . . . . . . 2 . . . . . . . . . . . . . . . Recycling Unit Hacks 1 | . 1 . . . . . . . . . . . . . . . . . . . . . . Retrieve Components 1 | . 1 . . . . . . . . . . . . . . . . . . . . . . Scanalyzer 14 | . . . . . . . . 6 . . . . 4 . . . . . . 3 . 1 . Insert Component 4 | . . . . . . . . 2 . . . . 1 . . . . . . 1 . . . Analyze 5 | . . . . . . . . 2 . . . . 2 . . . . . . 1 . . . Retrieve Study 5 | . . . . . . . . 2 . . . . 1 . . . . . . 1 . 1 . Garrison Access Hacks 3 | . . . . . . . . 3 . . . . . . . . . . . . . . . Seal Access 3 | . . . . . . . . 3 . . . . . . . . . . . . . . . Unauthorized Hacks 26 | . 4 . . . . 2 . 5 . . . . 4 2 . . . . 4 4 . 1 . Terminals 13 | . 3 . . . . 1 . 1 . . . . 3 1 . . . . 2 2 . . . Botnet 13 | . 3 . . . . 1 . 1 . . . . 3 1 . . . . 2 2 . . . Fabricators 8 | . . . . . . 1 . 4 . . . . 1 . . . . . 1 1 . . . Fabnet 8 | . . . . . . 1 . 4 . . . . 1 . . . . . 1 1 . . . Repair Stations 2 | . . . . . . . . . . . . . . 1 . . . . . . . 1 . Patch 2 | . . . . . . . . . . . . . . 1 . . . . . . . 1 . Recycling Units 1 | . 1 . . . . . . . . . . . . . . . . . . . . . . Reject 1 | . 1 . . . . . . . . . . . . . . . . . . . . . . Scanalyzers . | . . . . . . . . . . . . . . . . . . . . . . . . Garrison Access 2 | . . . . . . . . . . . . . . . . . . . 1 1 . . . Jam 2 | . . . . . . . . . . . . . . . . . . . 1 1 . . . Data Cores Recovered . | . . . . . . . . . . . . . . . . . . . . . . . . Used . | . . . . . . . . . . . . . . . . . . . . . . . . Hacking Detections 54 | . 6 . . . 1 4 . 11 . . . . 9 8 . . . . 6 6 . 2 1 Full Trace Events 18 | . 2 . . . . 2 . 4 . . . . 4 3 . . . . . 1 . 1 1 Feedback Events 1 | . . . . . . . . . . . . . . 1 . . . . . . . . . Corruption 1 | . . . . . . . . . . . . . . 1 . . . . . . . . . Feedback Blocked 1 | . . . . . . 1 . . . . . . . . . . . . . . . . . Robot Schematics Acquired 4 | . . . . . . . . . . . 4 . . . . . . . . . . . . Robots Built . | . . . . . . . . . . . . . . . . . . . . . . . . Authchips . | . . . . . . . . . . . . . . . . . . . . . . . . Time . | . . . . . . . . . . . . . . . . . . . . . . . . Total Robot Build Rating . | . . . . . . . . . . . . . . . . . . . . . . . . Part Schematics Acquired 19 | . 2 . . . . . . 3 . . 12 . 1 . . . . . . 1 . . . Parts Built 1 | . . . . . . . . 1 . . . . . . . . . . . . . . . Authchips . | . . . . . . . . . . . . . . . . . . . . . . . . Time 53 | . . . . . . . . 53 . . . . . . . . . . . . . . . Total Part Build Rating 6 | . . . . . . . . 6 . . . . . . . . . . . . . . . Part Studies Acquired 5 | . . . . . . . . 2 . . . . 1 . . . . . . 1 . 1 . Parts Repaired 2 | . . . . . . . . 2 . . . . . . . . . . . . . . . Time 82 | . . . . . . . . 82 . . . . . . . . . . . . . . . Parts Recycled . | . . . . . . . . . . . . . . . . . . . . . . . . Recycled Matter . | . . . . . . . . . . . . . . . . . . . . . . . . Retrieved Matter . | . . . . . . . . . . . . . . . . . . . . . . . . Retrieved Components . | . . . . . . . . . . . . . . . . . . . . . . . . Parts Scanalyzed 4 | . . . . . . . . 2 . . . . 1 . . . . . . 1 . . . Part Schematics Acquired 4 | . . . . . . . . 2 . . . . 1 . . . . . . 1 . . . Parts Damaged . | . . . . . . . . . . . . . . . . . . . . . . . . Bothacking | -11 -10 -10 -10 -9 -8 -7 -7 -7 -7 -7 -7 -6 -6 -5 -5 -5 -5 -4 -4 -3 -2 -1 -1 ------------ Run | Yrd Mat Min Exi Min Mat Fac Was Fac Low Low Dat Pro Fac Fac Upp Upp War Pro Fac Res Res Acc Com Used RIF Installer . | . . . . . . . . . . . . . . . . . . . . . . . . Robots Hacked 27 | . . . . . . . . . . . . 4 2 4 1 . 7 . 1 3 4 . 1 Non-combat . | . . . . . . . . . . . . . . . . . . . . . . . . Combat 27 | . . . . . . . . . . . . 4 2 4 1 . 7 . 1 3 4 . 1 Robot Hacks Applied 3 | . . . . . . . . . . . . . . . . . . . . . 3 . . parse_system 3 | . . . . . . . . . . . . . . . . . . . . . 3 . . Manual 1 | . . . . . . . . . . . . . . . . . . . . . 1 . . Relay Couplers Released 10 | . . . . . . . . . . . . . 3 3 . . . . . 4 . . . Machine Destruction 3 | . . . . . . . . . . . . . . 3 . . . . . . . . . Programmers 7 | . . . . . . . . . . . . . 3 . . . . . . 4 . . . Fabnet Peak Effective % 15 | . . . . . . . . . . . . 15 15 8 8 8 8 1 1 3 4 1 1 Autooverrided 24 | . . . . . . . . . . . . 4 2 4 1 . 7 . 1 3 1 . 1 Robots Rewired 5 | . . . . . . . . . . . . . . . . . 5 . . . . . . Allies Hacked 2 | . . . . . . . . . . . . . . . . . . 1 1 . . . . Hacks Repelled . | . . . . . . . . . . . . . . . . . . . . . . . . Allies | -11 -10 -10 -10 -9 -8 -7 -7 -7 -7 -7 -7 -6 -6 -5 -5 -5 -5 -4 -4 -3 -2 -1 -1 -------- Run | Yrd Mat Min Exi Min Mat Fac Was Fac Low Low Dat Pro Fac Fac Upp Upp War Pro Fac Res Res Acc Com Total Allies 42 | . . . . . . . . . . . . 5 2 4 4 . 14 . 1 5 6 . 1 Largest Group 6 | . . . . . . . . . . . . 3 1 1 3 . 6 6 5 1 5 . 1 Highest-Rated Group 453 | . . . . . . . . . . . . 154 41 49 93 . 423 418 381 64 453 . 69 Highest-Rated Ally 353 | . . . . . . . . . . . . 96 41 49 31 . 109 109 142 64 353 . 69 Total Orders . | . . . . . . . . . . . . . . . . . . . . . . . . Ally Attacks 234 | . . . . . . . . . . . . 12 2 18 1 . 69 24 8 15 85 . . Total Damage 7955 | . . . . . . . . . . . . 258 18 278 19 . 2318 753 411 178 3722 . . Kills 36 | . . . . . . . . . . . . 2 1 1 . . 14 4 3 1 10 . . Allies Corrupted 1 | . . . . . . . . . . . . . . . . . . . 1 . . . . Allies Melted 1 | . . . . . . . . . . . . . . . . . . . . . 1 . . Field Lobotomies 4 | . . . . . . . . . . . . . . . . . 2 . . 2 . . . Intel | -11 -10 -10 -10 -9 -8 -7 -7 -7 -7 -7 -7 -6 -6 -5 -5 -5 -5 -4 -4 -3 -2 -1 -1 ------- Run | Yrd Mat Min Exi Min Mat Fac Was Fac Low Low Dat Pro Fac Fac Upp Upp War Pro Fac Res Res Acc Com Active Infowar (turns) 16810 | 5 162 . . . 694 456 249 2905 371 474 90 482 1729 2014 521 291 1005 506 1273 2022 911 450 200 Optics 16643 | . . . . . 694 456 249 2905 371 474 90 482 1729 2014 521 291 1005 506 1273 2022 911 450 200 Seismic 167 | 5 162 . . . . . . . . . . . . . . . . . . . . . . Cloaking 2 | . . . . . . . . . . . . . . . . . 1 . . 1 . . . ECM 3 | . . . . . . . . . . . . . 1 . . . . . . 2 . . . Robot Analysis Total 3 | . 2 . . . . . . 1 . . . . . . . . . . . . . . . Derelict Logs Recovered 10 | . . 1 . 1 . . . . 1 2 . 1 . . 1 2 . 1 . . . . . Drone Launches . | . . . . . . . . . . . . . . . . . . . . . . . . Drone Recoveries . | . . . . . . . . . . . . . . . . . . . . . . . . Exploration | -11 -10 -10 -10 -9 -8 -7 -7 -7 -7 -7 -7 -6 -6 -5 -5 -5 -5 -4 -4 -3 -2 -1 -1 ------------- Run | Yrd Mat Min Exi Min Mat Fac Was Fac Low Low Dat Pro Fac Fac Upp Upp War Pro Fac Res Res Acc Com Turns Passed 18881 | 61 1399 45 577 118 695 456 249 2925 371 474 90 482 1729 2027 521 291 1005 506 1273 2022 911 450 204 Spaces Moved 11522 | 41 889 34 423 78 417 300 187 1752 291 373 76 344 825 1092 373 227 729 290 734 1004 507 296 240 Core 42 | 1 . . . . . . . . . . . . . . . . . . . . . . 41 Treads . | . . . . . . . . . . . . . . . . . . . . . . . . Legs 592 | . . . . . . . . . . . . . . . . . . . . . 211 296 85 Wheels 10777 | 40 889 34 423 78 417 300 187 1752 291 373 76 344 825 1092 373 227 729 290 734 1004 296 . 3 Hover . | . . . . . . . . . . . . . . . . . . . . . . . . Flight 111 | . . . . . . . . . . . . . . . . . . . . . . . 111 Fastest Speed 33 | 50 90 135 135 135 116 116 131 115 120 120 120 120 125 116 115 115 115 130 101 96 96 105 33 Average Speed 122 | 89 113 135 135 135 121 129 131 121 120 120 120 120 136 125 124 115 117 130 117 114 154 114 63 Slowest Speed 260 | 100 155 135 135 135 135 145 131 215 120 120 120 120 160 165 175 115 130 130 118 148 260 190 121 Overloaded Moves . | . . . . . . . . . . . . . . . . . . . . . . . . Propulsion Burnouts . | . . . . . . . . . . . . . . . . . . . . . . . . Robots Hopped . | . . . . . . . . . . . . . . . . . . . . . . . . Potential Cave-ins 7 | . . . . . . . . . . . . . . . . . 5 . . . . . 2 Cave-ins Triggered . | . . . . . . . . . . . . . . . . . . . . . . . . Exploration Rate (%) 45 | 4 97 12 72 17 35 14 98 52 57 58 72 52 26 34 62 67 84 57 30 39 21 10 13 Regions Visited 23 Branch Regions 12 Pre-discovered Areas 4 | . . . 1 . . . . . 1 . 1 . . . . . . 1 . . . . . Known Exits Taken 1 | . . . . . . . . . . . . . . . . . . . 1 . . . . Unknown Exits Taken 20 | 1 1 1 1 1 1 . . 1 1 1 1 1 1 1 1 1 1 1 . 1 1 1 . Scrap Searched 12 | . . . . 1 . . . . 1 3 . 1 . . 2 3 . 1 . . . . . Spaces Dug 17 | . . . . . . . . 3 . . . . . . . . . . 1 13 . . . Terrain Destroyed 1068 | . . . . . . . . 192 . . . 64 10 197 24 18 . 16 63 174 47 262 1 Melee . | . . . . . . . . . . . . . . . . . . . . . . . . Projectile 219 | . . . . . . . . 3 . . . . 10 74 12 1 . 16 31 69 1 1 1 AOE 849 | . . . . . . . . 189 . . . 64 . 123 12 17 . . 32 105 46 261 . Terrain Rammed . | . . . . . . . . . . . . . . . . . . . . . . . . Walls Destroyed . | . . . . . . . . . . . . . . . . . . . . . . . . Machines Disabled . | . . . . . . . . . . . . . . . . . . . . . . . . Actions | -11 -10 -10 -10 -9 -8 -7 -7 -7 -7 -7 -7 -6 -6 -5 -5 -5 -5 -4 -4 -3 -2 -1 -1 --------- Run | Yrd Mat Min Exi Min Mat Fac Was Fac Low Low Dat Pro Fac Fac Upp Upp War Pro Fac Res Res Acc Com Total 14952 | 59 1126 33 429 91 571 352 191 2381 308 387 75 374 1297 1529 403 251 870 387 1007 1542 617 392 280 Wait 1861 | 7 109 . 4 14 75 16 5 417 16 4 . 3 362 234 4 1 46 80 140 268 22 28 6 Move 11501 | 40 888 33 422 77 416 300 186 1751 290 372 75 343 824 1091 372 226 728 289 734 1003 506 295 240 Hop . | . . . . . . . . . . . . . . . . . . . . . . . . Pick Up 240 | 4 26 . 1 . 23 6 . 34 . . . 1 16 24 10 1 12 1 15 35 20 10 1 Fast Attach 116 | 7 1 . . . 4 6 . 19 . 3 . 3 5 15 2 7 10 . 8 12 10 3 1 Attach 145 | . 4 . . . 8 4 . 10 . . . . 11 22 3 . 1 . 8 44 8 5 17 Detach 41 | . 1 . . . 2 . . 6 . . . . 5 3 . 1 3 . 1 6 7 1 5 Swap 98 | . 8 . 1 . 7 2 . 10 . . . 3 2 15 1 2 8 2 12 10 13 2 . Drop 212 | . 11 . 1 . 15 9 . 39 . 3 . 4 12 17 . 10 25 1 24 17 14 9 1 Fire 691 | 1 78 . . . 21 9 . 87 2 5 . 17 60 108 11 3 7 14 64 147 11 39 7 Melee 6 | . . . . . . . . . . . . . . . . . . . . . 6 . . Ram 2 | . . . . . . . . . . . . . . . . . . . . . . . 2 Kick . | . . . . . . . . . . . . . . . . . . . . . . . . Crush . | . . . . . . . . . . . . . . . . . . . . . . . . Escape Stasis 8 | . . . . . . . . 8 . . . . . . . . . . . . . . . Rewire 30 | . . . . . . . . . . . . . . . . . 30 . . . . . . Trap 1 | . . . . . . . . . . . . . . . . . . . 1 . . . . Miscellaneous . | . . . . . . . . . . . . . . . . . . . . . . . . Route ------- -11/Scrapyard -10/Materials (discovered 4 exits: [*Mat x3] / [*Min]) -10/Mines -10/Exiles -9/Mines -8/Materials -7/Factory -7/Waste -7/Factory -7/Lower Caves -7/Lower Caves -7/Data Miner -6/Proximity Caves -6/Factory -5/Factory -5/Upper Caves -5/Upper Caves -5/Warlord -4/Proximity Caves -4/Factory (discovered 4 exits: *Res x4) -3/Research (discovered 2 exits: [*Res] / *Arm) -2/Research (discovered 2 exits: *Acc / *Tes) -1/Access -1/Command History --------- Turn | Location | Event 4 | -11/Scrapyard | Discovered new exit (range 16) 62 | -11/Scrapyard | Entered Materials 131 | -10/Materials | Discovered new exit (range 9) 302 | -10/Materials | Build established: Mutant 391 | -10/Materials | Discovered new exit (range 15) 851 | -10/Materials | Discovered new exit (range 8) 1279 | -10/Materials | Central database locked down 1338 | -10/Materials | Discovered new exit (range 16) 1359 | -10/Materials | Core integrity fell below 50% 1461 | -10/Materials | Entered Mines 1470 | -10/Mines | Learned Materials garrison access intel 1501 | -10/Mines | Deemed a non-threat by the Exiles lab entrance 1501 | -10/Mines | Discovered new exit (range 5) 1506 | -10/Mines | Entered Exiles 1542 | -10/Exiles | Met 8R-AWN 1561 | -10/Exiles | Met EX-HEX 1606 | -10/Exiles | Met EX-BIN 1649 | -10/Exiles | Met EX-DEC 1656 | -10/Exiles | Learned location of Zion (-6) 1845 | -10/Exiles | Build established: Scavenger-Mutant 1893 | -10/Exiles | Aligned with FarCom system 1895 | -10/Exiles | Given EX-Vault access code 1927 | -10/Exiles | Opened EX-Vault 1938 | -10/Exiles | Found Field Lobotomy Kit 1966 | -10/Exiles | Warned to stay clear of 0b10 Research branches 1983 | -10/Exiles | Exiles lab attacked by MAIN.C 2072 | -10/Exiles | Discovered new exit (range 10) 2083 | -10/Exiles | Left Exiles lab with Field Lobotomy Kit 2083 | -10/Exiles | Entered Mines 2169 | -9/Mines | Learned Materials stockpile data 2180 | -9/Mines | Discovered new exit (range 12) 2181 | -9/Mines | Assembled infested the area 2201 | -9/Mines | Entered Materials 2201 | -8/Materials | Evolved 4 slots: Propulsion x1, Utility x3 2203 | -8/Materials | Loaded intel: 1 garrison access location 2364 | -8/Materials | Garrison activated, responded to threat 2584 | -8/Materials | Lost 4 parts (3n1w) 2682 | -8/Materials | Met 7R-MNS 2845 | -8/Materials | Discovered new exit (range 17) 2896 | -8/Materials | Entered Factory 2896 | -7/Factory | Evolved 2 slots: Utility x1, Weapon x1 2897 | -7/Factory | Caught up to 7R-MNS 2922 | -7/Factory | Garrison activated, responded to threat 3173 | -7/Factory | Build established: Hacker-Skirmisher 3314 | -7/Factory | Garrison activated, responded to threat 3352 | -7/Factory | Sucked down chute 3352 | -7/Factory | Entered Waste 3361 | -7/Waste | Spotted C-40 Crusher 3418 | -7/Waste | Spotted C-40 Crusher 3425 | -7/Waste | Spotted C-40 Crusher 3431 | -7/Waste | Spotted C-40 Crusher 3465 | -7/Waste | Spotted C-40 Crusher 3533 | -7/Waste | Spotted C-40 Crusher 3589 | -7/Waste | Discovered new exit (range 10) 3601 | -7/Waste | Entered Factory 4133 | -7/Factory | Repaired Hrd. Medium Armor Plating 4179 | -7/Factory | Repaired Imp. Deuterium Engine 5367 | -7/Factory | Central database locked down 5465 | -7/Factory | Lost 3 parts (3u) 5718 | -7/Factory | Build established: Tank 5828 | -7/Factory | Core integrity fell below 50% 5871 | -7/Factory | Lost 3 parts (1n2u) 6381 | -7/Factory | Discovered new exit (range 20) 6512 | -7/Factory | Fabricated Lyr. Heavy Armor Plating (x1) 6526 | -7/Factory | Entered Lower Caves 6539 | -7/Lower Caves | Attracted the attention of an 0b10 checkpoint 6887 | -7/Lower Caves | Discovered new exit (range 11) 6897 | -7/Lower Caves | Entered another Lower Caves area 7114 | -7/Lower Caves | Encountered a Warlord checkpoint 7154 | -7/Lower Caves | Attracted the attention of an 0b10 checkpoint 7177 | -7/Lower Caves | Learned Factory garrison access intel 7192 | -7/Lower Caves | Discovered new exit (range 18) 7224 | -7/Lower Caves | Learned Factory trap positions 7251 | -7/Lower Caves | Entered an active Warlord outpost 7310 | -7/Lower Caves | Learned Armory trap positions 7310 | -7/Lower Caves | Learned Extension stockpile data 7310 | -7/Lower Caves | Learned Research security intel 7371 | -7/Lower Caves | Entered Data Miner 7371 | -7/Data Miner | Discovered new exit (range 6) 7389 | -7/Data Miner | Met Data Miner 7416 | -7/Data Miner | Learned location of Section 7 (-3) 7416 | -7/Data Miner | Acquired the access code to Warlord's prototype stash 7435 | -7/Data Miner | Received God Mode back door access code from Data Miner 7461 | -7/Data Miner | Entered Proximity Caves 7467 | -6/Proximity Caves | Learned Factory security intel 7497 | -6/Proximity Caves | Spotted B-75 Beast 7505 | -6/Proximity Caves | Attracted the attention of an 0b10 checkpoint 7579 | -6/Proximity Caves | Escorted by Enhanced Grunt 7721 | -6/Proximity Caves | Lost 3 allies 7936 | -6/Proximity Caves | Discovered new exit (range 6) 7943 | -6/Proximity Caves | Entered Factory 7943 | -6/Factory | Evolved 2 slots: Power x1, Utility x1 7944 | -6/Factory | Loaded intel: 106 trap records 7946 | -6/Factory | Loaded intel: 4 garrison access locations 8231 | -6/Factory | Build established: Hacker-Tank 8301 | -6/Factory | Garrison activated, responded to threat 8351 | -6/Factory | Lost 3 parts (1u2w) 8570 | -6/Factory | Build established: Tank 8708 | -6/Factory | Lost 3 parts (1n1u1w) 9427 | -6/Factory | Build established: Scavenger-Tank 9607 | -6/Factory | Discovered new exit (range 8) 9672 | -6/Factory | Entered another Factory area 9672 | -5/Factory | Evolved 2 slots: Propulsion x1, Utility x1 9872 | -5/Factory | Build established: Tank 10043 | -5/Factory | Incoming investigation squad redirected 11507 | -5/Factory | Found Hvy. Reflective Plating 11510 | -5/Factory | System corruption reached 10% 11515 | -5/Factory | Lost 4 parts (1n3u) 11581 | -5/Factory | Lost 5 parts (1p2n2w) 11621 | -5/Factory | Destroyed 7 combat bots 11659 | -5/Factory | Local machine network offline 11692 | -5/Factory | Discovered new exit (range 6) 11699 | -5/Factory | Entered Upper Caves 11705 | -5/Upper Caves | Encountered a Warlord checkpoint 11814 | -5/Upper Caves | Attracted the attention of an 0b10 checkpoint 11882 | -5/Upper Caves | Learned Factory trap positions 11916 | -5/Upper Caves | Build established: Scavenger-Tank 12028 | -5/Upper Caves | Entered an active Warlord outpost 12046 | -5/Upper Caves | A Commander dispatched an escort 12048 | -5/Upper Caves | Learned Research security intel 12212 | -5/Upper Caves | Discovered new exit (range 3) 12220 | -5/Upper Caves | Entered another Upper Caves area 12220 | -5/Upper Caves | Accompanied by 3 allies 12221 | -5/Upper Caves | Commander's escort returned to base 12221 | -5/Upper Caves | Commander's escort returned to base 12221 | -5/Upper Caves | Commander's escort returned to base 12226 | -5/Upper Caves | Learned Factory security intel 12229 | -5/Upper Caves | Learned Factory trap positions 12444 | -5/Upper Caves | Found DCF Scrap (14 items) 12480 | -5/Upper Caves | Discovered new exit (range 20) 12482 | -5/Upper Caves | Attracted the attention of an 0b10 checkpoint 12511 | -5/Upper Caves | Entered Warlord 12553 | -5/Warlord | System corruption cleaned by Quarantine Array 12782 | -5/Warlord | Met Warlord 12807 | -5/Warlord | Warlord's base attacked by MAIN.C 13157 | -5/Warlord | Warlord forces counterattacked 13238 | -5/Warlord | Opened Warlord's prototype stash 13241 | -5/Warlord | Found Prototype Reactor 13241 | -5/Warlord | Identified Vortex Chain Reactor 13247 | -5/Warlord | Found Prototype Processor 13247 | -5/Warlord | Identified Exp. Target Analyzer 13251 | -5/Warlord | Found Prototype Device 13251 | -5/Warlord | Identified Exp. Focal Shield 13267 | -5/Warlord | Found Prototype Device 13267 | -5/Warlord | Identified Exp. Cloaking Device 13360 | -5/Warlord | Spotted B-86 Titan 13384 | -5/Warlord | Spotted Striker 13384 | -5/Warlord | Spotted B-75 Beast 13394 | -5/Warlord | Allies destroyed B-75 Beast 13423 | -5/Warlord | Lost 3 allies 13442 | -5/Warlord | Spotted B-75 Beast 13443 | -5/Warlord | Spotted B-86 Titan 13446 | -5/Warlord | Assimilated B-86 Titan with FLK Orb 13449 | -5/Warlord | Assimilated B-75 Beast with FLK Orb 13477 | -5/Warlord | Discovered new exit (range 12) 13480 | -5/Warlord | Lost 3 allies 13482 | -5/Warlord | Warlord base infiltrated, sounded retreat 13516 | -5/Warlord | Entered Proximity Caves 13516 | -4/Proximity Caves | Accompanied by 6 allies 13612 | -4/Proximity Caves | Spotter reported a threat 13630 | -4/Proximity Caves | Spotted B-86 Titan 13653 | -4/Proximity Caves | Destroyed B-86 Titan 13686 | -4/Proximity Caves | Spotter reported a threat 13938 | -4/Proximity Caves | Learned location of Armory (-3) 13999 | -4/Proximity Caves | Discovered new exit (range 3) 14022 | -4/Proximity Caves | Entered Factory 14022 | -4/Factory | Accompanied by 5 allies 14022 | -4/Factory | Evolved 2 slots: Propulsion x1, Utility x1 14023 | -4/Factory | Loaded intel: 95 trap records 14272 | -4/Factory | Search patrols dispatched 14613 | -4/Factory | Build established: Hacker-Tank 14861 | -4/Factory | Identified exit to Research 15295 | -4/Factory | Entered Research 15295 | -3/Research | Evolved 2 slots: Utility x2 15296 | -3/Research | Identified exit to Armory 15545 | -3/Research | First assault squad dispatched 15602 | -3/Research | Spotted B-86 Titan 15612 | -3/Research | Destroyed B-86 Titan 15640 | -3/Research | Found Hvy. Reflective Plating 15798 | -3/Research | Spotted B-86 Titan 15872 | -3/Research | Incoming investigation squad redirected 16024 | -3/Research | System corruption reached 10% 16081 | -3/Research | Lost 3 parts (1p2n) 16126 | -3/Research | Garrison activated, responded to threat 16127 | -3/Research | Incoming assault squad redirected 16208 | -3/Research | Lost 3 parts (2u1w) 16427 | -3/Research | Build established: Scavenger-Tank 16681 | -3/Research | Assimilated Y-72 Warden with FLK Orb 16684 | -3/Research | Assimilated X-82 Rainmaker with FLK Orb 16691 | -3/Research | System corruption reached 30% 16759 | -3/Research | Lost 12 parts (1p4n5u2w) 17046 | -3/Research | Local machine network offline 17064 | -3/Research | Incoming assault squad redirected 17092 | -3/Research | Lost 11 parts (4n3u4w) 17194 | -3/Research | Lost 4 parts (1p2n1u) 17303 | -3/Research | Discovered new exit (range 9) 17311 | -3/Research | Incoming assault squad redirected 17317 | -3/Research | Entered another Research area 17317 | -2/Research | Warlord forces began assault on 0b10 17317 | -2/Research | Evolved 2 slots: Propulsion x1, Utility x1 17356 | -2/Research | Build established: Scavenger-Skirmisher 17382 | -2/Research | Found Fusion Bomb Launcher 17384 | -2/Research | Found Fusion Bomb Launcher 17427 | -2/Research | Research machine network offline 17634 | -2/Research | Discovered new exit (range 7) 17642 | -2/Research | Identified exit to Testing 17738 | -2/Research | Build established: Scavenger-Tank 17769 | -2/Research | Found Hvy. Reactive Plating 17836 | -2/Research | Borebot progress halted 17884 | -2/Research | Borebot progress halted 17936 | -2/Research | Found Launcher Loader 17944 | -2/Research | Met up with Warlord 17950 | -2/Research | Discovered new exit (range 11) 17995 | -2/Research | Borebot progress halted 18045 | -2/Research | Took control of God Mode 18045 | -2/Research | Attacked by Warlord forces 18046 | -2/Research | Attacked by Warlord 18046 | -2/Research | Spotted W3-4QZ(K) 18046 | -2/Research | Spotted DE-LP6(K) 18047 | -2/Research | Spotted N8-YOR(g) 18061 | -2/Research | Destroyed DE-LP6(K) 18070 | -2/Research | Allies destroyed W3-4QZ(K) 18075 | -2/Research | Allies destroyed Warlord 18077 | -2/Research | Warlord destroyed during the assault 18089 | -2/Research | Allies destroyed N8-YOR(g) 18104 | -2/Research | Lost 3 parts (1p1u1w) 18173 | -2/Research | Allies destroyed DD-05H 18206 | -2/Research | Spotted Striker 18206 | -2/Research | Spotted Striker 18228 | -2/Research | Entered Access 18228 | -1/Access | Evolved 2 slots: Propulsion x2 18244 | -1/Access | Lost 4 allies 18441 | -1/Access | Incoming investigation squad redirected 18566 | -1/Access | Garrison activated, responded to threat 18639 | -1/Access | Destroyed 17 combat bots 18659 | -1/Access | Spotted B-99 Colossus 18659 | -1/Access | Spotted B-99 Colossus 18662 | -1/Access | Discovered new exit (range 12) 18678 | -1/Access | Entered Command 18701 | -1/Command | Lost 7 parts (1n5u1w) 18740 | -1/Command | Incoming investigation squad redirected 18833 | -1/Command | Spotted M Guard 18833 | -1/Command | Spotted M Guard 18834 | -1/Command | Spotted Combat Programmer 18834 | -1/Command | Spotted Combat Programmer 18856 | -1/Command | Core integrity fell below 50% 18862 | -1/Command | Core integrity fell below 20% 18862 | -1/Command | System corruption reached 10% 18882 | -1/Command | Destroyed by H-88 Terminator with KE Penetrator Last Messages --------------- 18875_ C-45 Heavy ARC bursts open, deploying its payload. 18875_ G-73 Enforcer unfolds itself. 18875_ H-88 Terminator destroyed. 18875_ X-87 Electro springs to life. 18875_ EMDS Slug penetrates Wall. 18876_ Slammed into Combat Programmer. 18877_ Penetrated by EMDS Slug. 18878_ Slammed into Combat Programmer. 18878_ Destabilizing: System interference. 18878_ Enh. Optical Array temporarily disabled. 18878_ Penetrated by EMDS Slug. 18879_ PX1Y|V98BCKKL2E =XV8WNUWD MNLH, 18880_ B-74 Champion springs to life. 18880_ Penetrated by EMDS Slug. 18881_ Biometal Leg destroyed. 18881_ H-88 Terminator springs to life. 18881_ Penetrated by EMDS Slug. 18882_ H-88 Terminator springs to life. 18882_ Slug penetrates Wall. [Achievement: 40k Club] Map ----- +----------------------------------------------------+ | ?????????????????#"""### ## ####?#####?#####??? | | ?????????????????# # #?# #?# #??? | | ?????????????????# ## # ### ### #### | | ?????????????????# + | | ?????????????????# + | | ?????????????????# + | | ?????????????????# + | | ?????????????????# + | | ?????????????????# # # ### ### #### | | ?????????????????###### # #?# #?# #??? | | ????????????????????# # ####?#####?#####??? | | ????????????????????# #?????????????????? | | ????????????????????## # #?????????????????? | | ?????????????????????### #?????????????????? | | ?????????????????????# # #?????????????????? | | ?????????????????????# #?????????????????? | | ?????????????????????# YY # #?????????????????? | | ?????????????????????# #?????????????????? | | ?????????????????????# #?????????????????? | | ?????????????????????# # # #?????????????????? | | ?????????????????????## ##?????????????????? | | ??????????????????????## % ##??????????????????? | | ??????????????????????## ##??????????????????? | | ?????????????????????## #??????????????????? | | ?????????????????????# #??????????????????? | | ???????????????????????# @ #??????????????????? | | ?????????????????####### ####???????????????? | | ?????????????????# pp c #??????????????? | | ?????????????????#x### # #????????????? # | | ?????????????????#h#?## ##??????????????# ?? | | ?????????????????#x#??#b# #h ##?c?????????????#??? | | ?????????????????#+#??#b###h##??c????????????????? | | ????????????????dxgi?llb ?hhh??sss???????????????? | | ????????????????hgxi?llbb?hhh????????????????????? | | ????????????????ddgi#llbb??hhh???????????????????? | | ????????????????xdgi#llb ?hhh ???????????????????? | | ???????????????# xgi#llbb?hhhh??s????????????????? | | ???????????????#hhdi#llbb?hhhh#??????????????????? | | ???????????????##hg### ##?? ##??????????????????? | | ????????????????#*=#?# ???? #???????????????????? | | ????????????????# #?# ???? #???????????????????? | | ????????????????# d#?? ???? ????????????????????? | | ????????????????# ??? ?????????????????????????? | | ????????????????# ??? ?????????????????????????? | | ????????????????# ??????????????????????????????? | | ????????????????###??????????????????????????????? | | ?????????????????????????????????????????????????? | | ?????????????????????????????????????????????????? | | ?????????????????????????????????????????????????? | | ?????????????????????????????????????????????????? | +----------------------------------------------------+ Best States ------------- Heat Dissipation 122 Coolant Potential 120 Energy Generation 55 Energy Capacity 1300 Matter Stores 350 Matter Capacity 350 Sight Range 22 Terrain Scan Density 10 Base Temperature (-) 200 Armor Coverage 975 Resistance: KI 40 Resistance: TH 25 Resistance: EM 15 Core Shielding 30 Phase Shifting 10 Evasion (%) 63 Targeting Accuracy 8 Particle Charging 25 Offensive Hacking 24 Defensive Hacking 20 Item Schematics ----------------- Huge Storage Unit | -10/Materials | Hacked Wheel | -10/Materials | Hacked Enh. Optical Array | -7/Factory | Hacked Arm. Huge Wheel | -7/Factory | Scanalyzed Hrd. Medium Armor Plating | -7/Factory | Scanalyzed Combat Drone Bay | -7/Data Miner | Free Lgt. Regenerative Plating | -7/Data Miner | Free Cld. Aerolev Unit | -7/Data Miner | Free Gravity Neutralizer | -7/Data Miner | Free Imp. Heavy Laser | -7/Data Miner | Free Thunder Leg | -7/Data Miner | Free Imp. Transmission Jammer | -7/Data Miner | Free Imp. Plasma Cutter | -7/Data Miner | Free Adv. Signal Interpreter | -7/Data Miner | Free Imp. Component Analysis Suite | -7/Data Miner | Free Imp. Linear Gravjet | -7/Data Miner | Free Lgt. Antimatter Reactor | -7/Data Miner | Free Hvy. Rocket Launcher | -6/Factory | Scanalyzed Centrium Wheel | -3/Research | Scanalyzed Robot Schematics ------------------ A-15 Conveyor | -7/Data Miner | Free B-48 Gladiator | -7/Data Miner | Free M-28 Smith | -7/Data Miner | Free Y-64 Sentinel | -7/Data Miner | Free Fabricated ------------ Lyr. Heavy Armor Plating | x1 | -7/Factory | Preloaded Repaired ---------- Hrd. Medium Armor Plating | 11% | -7/Factory Imp. Deuterium Engine | 5% | -7/Factory Studied --------- Wheel | -7/Factory | Hacked Arm. Wheel | -7/Factory | Hacked Arm. Huge Wheel | -6/Factory | Hacked Centrium Wheel | -3/Research | Hacked Myomer Leg | -1/Access | Hacked Alien Tech Used ----------------- None Achievements -------------- 40k Club Godhack I Have Friends Everywhere Challenges ------------ None Game ------ Seed DispersalProjectionPick Manual? 0 Play Time 03:39:43 Cumulative 200.7 hours Start 2026.07.22 @ 13:02:25 End 2026.07.22 @ 21:54:22 Sessions 3 Manual Loads 0 Difficulty Rogue Special Mode None Game No. 260 Rogue 260 Adventurer 0 Explorer 0 Win Type - Total 4 Types 4/0/0/0/0/0/0/0/0/0 Lore% 79 Gallery% 61 Achievement% 48 Wizard Run 0 Options --------- Layout 0 ASCII 0 Keyboard 0 Movement Numpad Keybinds 0 Fullscreen 1 Font 18/Terminus Map View 76x50 Zoom Use 0% Tactical HUD 1 Map Filters NONE Filters NONE Steam 1 RUN: 84f7d7c0-9e4b-4c9d-bc1e-787621ce10b2